[Event "Czech Youth U14 Girls 2024"]
[Site "Kouty nad Desnou"]
[Date "2024.03.12"]
[Round "5.10"]
[White "Archlebova, Iva"]
[Black "Spetlova, Stella"]
[Result "0-1"]
[ECO "B10"]
[WhiteElo "1488"]
[BlackElo "1405"]
[Annotator "NA RC"]
[PlyCount "98"]
[EventDate "2024.03.10"]
[EventType "swiss"]
[EventCountry "CZE"]
[SourceTitle "playchess.com"]
[Source "ChessBase"]
[SourceQuality "1"]
[TimeControl "40/5400+30:1800+30"]

1. e4 {[%emt 0:00:02]} c6 {[%emt 0:00:16]} 2. d3 {[%emt 0:02:34]} d5 {[%emt 0:02:16]} 3. Nd2 {[%emt 0:08:01]} d4 {[%emt 0:03:46]} 4. Ngf3 {[%emt 0:00:54]} c5 {[%emt 0:00:54]} 5. g3 {[%emt 0:00:58]} Bg4 {[%emt 0:02:11]} 6. Bg2 {[%emt 0:00:37]} Nc6 {[%emt 0:02:12]} 7. O-O {[%emt 0:02:01]} Qc7 {[%emt 0:03:16]} 8. Nb3 {[%emt 0:04:40]} e5 {[%emt 0:02:09]} 9. Qe2 {[%emt 0:05:30]} Bd6 {[%emt 0:02:15]} 10. Bd2 {[%emt 0:01:32]} h6 {[%emt 0:02:05]} 11. c3 {[%emt 0:01:54]} Nf6 {[%emt 0:03:01]} 12. Rac1 {[%emt 0:04:05]} Qb6 {[%emt 0:02:25]} 13. Ra1 {[%emt 0:16:50]} O-O {[%emt 0:01:18]} 14. Qe1 {[%emt 0:03:58]} Rfe8 {[%emt 0:01:39]} 15. cxd4 {[%emt 0:07:56]} cxd4 {[%emt 0:04:10]} 16. Qe2 {[%emt 0:02:29]} a6 {[%emt 0:02:07]} 17. Bc1 {[%emt 0:06:32]} Rac8 {[%emt 0:02:26]} 18. Nbd2 {[%emt 0:02:00]} Qc7 {[%emt 0:02:49]} 19. Nc4 {[%emt 0:04:02]} Be7 {[%emt 0:00:56]} 20. a3 {[%emt 0:02:20]} b5 {[%emt 0:00:55]} 21. Ncd2 {[%emt 0:01:29]} Bd6 {[%emt 0:00:52]} 22. b4 {[%emt 0:02:22]} a5 {[%emt 0:02:14]} 23. Bb2 {[%emt 0:01:15]} axb4 {[%emt 0:00:58]} 24. Rfc1 {[%emt 0:01:09]} bxa3 {[%emt 0:00:27]} 25. Bxa3 {[%emt 0:00:51]} Bxa3 {[%emt 0:00:46]} 26. Rxa3 {[%emt 0:00:13]} Qb6 {[%emt 0:00:24]} 27. Rb3 {[%emt 0:02:01]} Na5 {[%emt 0:00:58]} 28. Rxc8 {[%emt 0:00:29]} Rxc8 {[%emt 0:00:06]} 29. Rb4 {[%emt 0:00:20]} Rc2 {[%emt 0:01:50]} 30. Qe1 {[%emt 0:01:09]} Qc5 {[%emt 0:00:22]} 31. Rb1 {[%emt 0:01:41]} b4 {[%emt 0:03:02]} 32. h3 {[%emt 0:07:15]} Bxf3 {[%emt 0:00:52]} 33. Bxf3 {[%emt 0:00:29]} Qc3 {[%emt 0:00:33]} 34. Rd1 {[%emt 0:01:13]} b3 {[%emt 0:01:53]} 35. Nb1 {[%emt 0:01:11]} Qxe1+ {[%emt 0:01:03]} 36. Rxe1 {[%emt 0:00:13]} b2 {[%emt 0:01:12]} 37. Na3 {[%emt 0:02:50]} Rc1 {[%emt 0:00:22]} 38. Kf1 {[%emt 0:00:26]} Rc3 {[%emt 0:00:53]} 39. Nb1 {[%emt 0:00:30]} Rxd3 {[%emt 0:00:46]} 40. Be2 {[%emt 0:00:49]} Rb3 {[%emt 0:00:32]} 41. Nd2 {[%emt 0:31:39]} Ra3 {[%emt 0:31:56]} 42. f3 {[%emt 0:00:44]} Ra1 {[%emt 0:01:54]} 43. Bd3 {[%emt 0:01:06]} Ra3 {[%emt 0:00:59]} 44. Be2 {[%emt 0:00:27]} Nb3 {[%emt 0:01:11]} 45. Nc4 {[%emt 0:00:55]} Ra2 {[%emt 0:01:31]} 46. Bd1 {[%emt 0:00:00]} b1=Q {[%emt 0:00:00]} 47. Bxb3 {[%emt 0:00:00]} Qxb3 {[%emt 0:00:00]} 48. Nxe5 {[%emt 0:00:00]} Qb2 49. Nd3 {[%emt 0:00:00]} Qg2# {[%emt 0:00:00]} 0-1

[Event "Czech Youth U14 Girls 2024"]
[Site "Kouty nad Desnou"]
[Date "2024.03.12"]
[Round "5.11"]
[White "Martinkovicova, Nela"]
[Black "Peskova, Sara"]
[Result "1/2-1/2"]
[ECO "A22"]
[WhiteElo "1476"]
[BlackElo "1481"]
[Annotator "NA RC"]
[PlyCount "95"]
[EventDate "2024.03.10"]
[EventType "swiss"]
[EventCountry "CZE"]
[SourceTitle "playchess.com"]
[Source "ChessBase"]
[SourceQuality "1"]
[TimeControl "40/5400+30:1800+30"]

1. c4 {[%emt 0:00:24]} e5 2. Nc3 {[%emt 0:00:13]} Nf6 {[%emt 0:00:31]} 3. g3 {[%emt 0:00:34]} d5 {[%emt 0:00:30]} 4. cxd5 {[%emt 0:00:56]} Nxd5 {[%emt 0:00:10]} 5. Bg2 {[%emt 0:00:42]} Be6 {[%emt 0:00:57]} 6. d3 {[%emt 0:03:35]} Bb4 {[%emt 0:02:05]} 7. Bd2 {[%emt 0:00:44]} O-O {[%emt 0:01:54]} 8. Nxd5 {[%emt 0:03:00]} Bxd2+ {[%emt 0:00:44]} 9. Qxd2 {[%emt 0:00:18]} Bxd5 {[%emt 0:00:12]} 10. Bxd5 {[%emt 0:00:12]} Qxd5 {[%emt 0:00:06]} 11. e4 {[%emt 0:00:18]} Qd6 {[%emt 0:02:00]} 12. Nf3 {[%emt 0:01:24]} Nc6 {[%emt 0:00:57]} 13. O-O {[%emt 0:01:52]} Rad8 {[%emt 0:02:31]} 14. Rad1 {[%emt 0:01:47]} f5 {[%emt 0:02:36]} 15. Kg2 {[%emt 0:01:16]} fxe4 {[%emt 0:02:32]} 16. dxe4 {[%emt 0:00:57]} Qxd2 {[%emt 0:00:53]} 17. Rxd2 {[%emt 0:00:10]} Rxd2 {[%emt 0:00:31]} 18. Nxd2 {[%emt 0:00:33]} Rf6 {[%emt 0:04:08]} 19. Nc4 {[%emt 0:05:00]} b5 {[%emt 0:03:47]} 20. Ne3 {[%emt 0:05:06]} Nb4 {[%emt 0:05:50]} 21. Ng4 {[%emt 0:05:37]} Rd6 {[%emt 0:10:41]} 22. a3 {[%emt 0:01:59]} Nd3 {[%emt 0:02:43]} 23. b4 {[%emt 0:02:06]} Ra6 {[%emt 0:02:41]} 24. Ra1 {[%emt 0:01:48]} h5 {[%emt 0:00:46]} 25. Ne3 {[%emt 0:00:48]} Nxb4 {[%emt 0:01:09]} 26. Rb1 {[%emt 0:02:34]} Na2 {[%emt 0:04:22]} 27. Rxb5 {[%emt 0:03:14]} Nc3 {[%emt 0:05:21]} 28. Rxe5 {[%emt 0:01:35]} g6 {[%emt 0:01:36]} 29. f3 {[%emt 0:02:40]} Rxa3 {[%emt 0:01:17]} 30. Re8+ {[%emt 0:03:33]} Kf7 {[%emt 0:00:45]} 31. Rc8 {[%emt 0:00:59]} Nb5 {[%emt 0:00:39]} 32. Nd5 {[%emt 0:00:36]} a5 {[%emt 0:03:40]} 33. Rb8 {[%emt 0:02:45]} Nd4 {[%emt 0:04:47]} 34. f4 {[%emt 0:02:51]} Ra1 {[%emt 0:05:03]} 35. Nxc7 {[%emt 0:02:21]} a4 {[%emt 0:01:28]} 36. Ra8 {[%emt 0:00:56]} Nc2 {[%emt 0:06:13]} 37. Nd5 {[%emt 0:04:05]} a3 {[%emt 0:01:30]} 38. Nc3 {[%emt 0:01:42]} Ne3+ {[%emt 0:04:27]} 39. Kf3 {[%emt 0:02:05]} Nc4 {[%emt 0:01:31]} 40. Ke2 {[%emt 0:02:03]} Rh1 {[%emt 0:02:55]} 41. Kd3 {[%emt 0:32:09]} Nb2+ {[%emt 0:31:25]} 42. Kd4 {[%emt 0:01:45]} Rxh2 {[%emt 0:01:59]} 43. Rxa3 {[%emt 0:01:29]} Rd2+ {[%emt 0:02:01]} 44. Kc5 {[%emt 0:03:28]} Rd3 {[%emt 0:01:48]} 45. Nb5 {[%emt 0:01:58]} Rxa3 {[%emt 0:00:48]} 46. Nxa3 {[%emt 0:00:15]} Ke6 {[%emt 0:00:49]} 47. Kd4 {[%emt 0:00:47]} Nd1 {[%emt 0:01:14]} 48. Nc2 {[%emt 0:01:01]} 1/2-1/2

[Event "Czech Youth U14 Girls 2024"]
[Site "Kouty nad Desnou"]
[Date "2024.03.12"]
[Round "5.12"]
[White "Kavanova, Valentyna"]
[Black "Myronova, Sofia"]
[Result "1-0"]
[ECO "D30"]
[WhiteElo "1539"]
[BlackElo "1456"]
[Annotator "NA RC"]
[PlyCount "137"]
[EventDate "2024.03.10"]
[EventType "swiss"]
[EventCountry "CZE"]
[SourceTitle "playchess.com"]
[Source "ChessBase"]
[SourceQuality "1"]
[TimeControl "40/5400+30:1800+30"]

1. d4 {[%emt 0:00:04]} d5 {[%emt 0:00:14]} 2. c4 {[%emt 0:00:09]} e6 {[%emt 0:00:12]} 3. Nf3 {[%emt 0:00:20]} c6 {[%emt 0:00:25]} 4. Nc3 {[%emt 0:00:41]} Nd7 {[%emt 0:00:27]} 5. Bf4 {[%emt 0:00:24]} Ngf6 {[%emt 0:00:28]} 6. e3 {[%emt 0:01:28]} dxc4 {[%emt 0:01:41]} 7. Bxc4 {[%emt 0:00:19]} b5 8. Bd3 {[%emt 0:01:07]} Bb7 {[%emt 0:01:19]} 9. O-O {[%emt 0:01:13]} Be7 {[%emt 0:02:30]} 10. Re1 {[%emt 0:03:36]} O-O 11. Bc2 {[%emt 0:00:16]} a6 {[%emt 0:02:41]} 12. Qd3 c5 13. b3 {[%emt 0:03:48]} Bxf3 {[%emt 0:07:55]} 14. gxf3 {[%emt 0:00:13]} cxd4 {[%emt 0:02:48]} 15. exd4 {[%emt 0:00:17]} g6 {[%emt 0:02:20]} 16. Bh6 {[%emt 0:00:23]} Re8 {[%emt 0:00:05]} 17. Kh1 {[%emt 0:04:23]} Nh5 {[%emt 0:01:38]} 18. Qe3 {[%emt 0:00:26]} Bh4 {[%emt 0:03:50]} 19. Ne4 {[%emt 0:01:08]} Ndf6 {[%emt 0:05:16]} 20. Rg1 {[%emt 0:01:55]} Nd5 {[%emt 0:02:08]} 21. Qd2 {[%emt 0:01:32]} a5 {[%emt 0:07:39]} 22. Bg5 {[%emt 0:04:37]} Bxg5 {[%emt 0:00:51]} 23. Rxg5 {[%emt 0:04:52]} Nhf4 {[%emt 0:01:03]} 24. Rg4 {[%emt 0:08:03]} f5 {[%emt 0:01:53]} 25. Rxf4 {[%emt 0:02:18]} Nxf4 {[%emt 0:00:14]} 26. Qxf4 {[%emt 0:00:07]} fxe4 {[%emt 0:00:19]} 27. Bxe4 {[%emt 0:01:26]} Qxd4 {[%emt 0:00:20]} 28. Rg1 {[%emt 0:00:18]} Rad8 {[%emt 0:01:27]} 29. Qg3 {[%emt 0:09:25]} Qg7 {[%emt 0:01:41]} 30. Bc6 {[%emt 0:04:35]} Rf8 {[%emt 0:00:49]} 31. Bxb5 {[%emt 0:01:01]} Qf6 {[%emt 0:03:41]} 32. Bc4 {[%emt 0:00:57]} Qxf3+ {[%emt 0:00:27]} 33. Qxf3 {[%emt 0:00:10]} Rxf3 {[%emt 0:00:09]} 34. Bxe6+ {[%emt 0:00:14]} Kg7 {[%emt 0:00:07]} 35. Kg2 {[%emt 0:00:31]} Rf6 {[%emt 0:00:29]} 36. Bc4 {[%emt 0:00:13]} Rd2 {[%emt 0:00:21]} 37. a4 {[%emt 0:01:53]} Rfxf2+ {[%emt 0:00:14]} 38. Kg3 {[%emt 0:00:35]} Rxh2 {[%emt 0:00:19]} 39. Rf1 {[%emt 0:00:15]} Rdg2+ {[%emt 0:00:31]} 40. Kf3 {[%emt 0:00:56]} Rg5 {[%emt 0:00:28]} 41. Ke3 {[%emt 0:31:08]} Rf5 {[%emt 0:30:29]} 42. Rb1 {[%emt 0:01:49]} h5 {[%emt 0:00:32]} 43. Rd1 {[%emt 0:06:38]} h4 {[%emt 0:00:32]} 44. Rd7+ {[%emt 0:00:55]} Kh6 {[%emt 0:00:08]} 45. Ra7 {[%emt 0:01:34]} h3 {[%emt 0:00:13]} 46. Bb5 {[%emt 0:02:18]} Rh1 {[%emt 0:00:40]} 47. Rxa5 {[%emt 0:00:49]} Rg1 {[%emt 0:00:24]} 48. Ra8 {[%emt 0:00:27]} Rg3+ {[%emt 0:00:19]} 49. Ke2 {[%emt 0:00:49]} Rxb3 {[%emt 0:00:13]} 50. Bd3 {[%emt 0:01:54]} Re5+ {[%emt 0:02:41]} 51. Kd2 {[%emt 0:00:41]} Rh5 {[%emt 0:01:26]} 52. Be4 {[%emt 0:06:58]} h2 {[%emt 0:00:41]} 53. a5 {[%emt 0:01:12]} Rbh3 {[%emt 0:00:20]} 54. Bh1 {[%emt 0:00:18]} Rg3 {[%emt 0:00:19]} 55. a6 {[%emt 0:00:16]} Rg1 {[%emt 0:00:06]} 56. a7 {[%emt 0:00:26]} Rxh1 {[%emt 0:00:19]} 57. Rh8+ {[%emt 0:00:20]} Kg5 {[%emt 0:00:10]} 58. Rxh5+ {[%emt 0:00:32]} Kxh5 {[%emt 0:00:08]} 59. a8=Q {[%emt 0:00:17]} Rg1 {[%emt 0:00:27]} 60. Qh8+ {[%emt 0:00:18]} Kg5 {[%emt 0:00:02]} 61. Qxh2 {[%emt 0:00:10]} Rg4 {[%emt 0:01:02]} 62. Ke3 {[%emt 0:00:30]} Kf6 {[%emt 0:00:58]} 63. Qf2+ {[%emt 0:00:58]} Kg5 {[%emt 0:00:42]} 64. Qf3 {[%emt 0:00:58]} Rb4 {[%emt 0:00:55]} 65. Qd5+ {[%emt 0:01:16]} Kh6 {[%emt 0:00:27]} 66. Qd6 {[%emt 0:00:47]} Ra4 {[%emt 0:00:36]} 67. Kf3 {[%emt 0:00:52]} Rc4 {[%emt 0:00:27]} 68. Qd3 {[%emt 0:01:29]} Rb4 {[%emt 0:00:19]} 69. Qd2+ 1-0

[Event "Czech Youth U14 Girls 2024"]
[Site "Kouty nad Desnou"]
[Date "2024.03.12"]
[Round "5.13"]
[White "Vaclavkova, Klara"]
[Black "Sochorova, Valentyna"]
[Result "0-1"]
[ECO "D34"]
[WhiteElo "1486"]
[BlackElo "1485"]
[Annotator "NA RC"]
[PlyCount "56"]
[EventDate "2024.03.10"]
[EventType "swiss"]
[EventCountry "CZE"]
[SourceTitle "playchess.com"]
[Source "ChessBase"]
[SourceQuality "1"]
[TimeControl "40/5400+30:1800+30"]

1. d4 {[%emt 0:00:02]} d5 {[%emt 0:00:13]} 2. c4 {[%emt 0:00:05]} e6 {[%emt 0:00:33]} 3. Nc3 {[%emt 0:00:05]} c5 {[%emt 0:00:19]} 4. cxd5 {[%emt 0:00:11]} exd5 {[%emt 0:00:28]} 5. Nf3 {[%emt 0:00:10]} Nc6 {[%emt 0:01:22]} 6. g3 {[%emt 0:00:18]} Nf6 {[%emt 0:02:32]} 7. Bg2 {[%emt 0:00:09]} Be7 {[%emt 0:02:35]} 8. dxc5 {[%emt 0:00:06]} d4 {[%emt 0:04:03]} 9. Nb5 {[%emt 0:06:15]} Qa5+ {[%emt 0:08:07]} 10. Kf1 {[%emt 0:04:28]} Qxb5 {[%emt 0:08:04]} 11. Nxd4 {[%emt 0:01:04]} Nxd4 {[%emt 0:08:37]} 12. Qxd4 {[%emt 0:00:35]} Qxc5 {[%emt 0:02:04]} 13. Be3 {[%emt 0:02:51]} Qxd4 {[%emt 0:11:18]} 14. Bxd4 {[%emt 0:00:08]} O-O {[%emt 0:01:38]} 15. h4 {[%emt 0:00:36]} Rd8 {[%emt 0:07:38]} 16. e3 {[%emt 0:00:25]} Nd5 {[%emt 0:05:55]} 17. Kg1 {[%emt 0:02:01]} Be6 {[%emt 0:05:43]} 18. Kh2 {[%emt 0:02:13]} b6 {[%emt 0:03:10]} 19. Rac1 {[%emt 0:01:20]} Rac8 {[%emt 0:02:07]} 20. a3 {[%emt 0:04:05]} Nf6 {[%emt 0:06:40]} 21. Rhd1 {[%emt 0:02:34]} Ng4+ {[%emt 0:04:01]} 22. Kg1 {[%emt 0:00:23]} Bb3 {[%emt 0:03:27]} 23. Rxc8 {[%emt 0:00:29]} Rxc8 {[%emt 0:00:28]} 24. Rd3 {[%emt 0:01:39]} Rc1+ {[%emt 0:01:51]} 25. Bf1 {[%emt 0:00:09]} Bc4 {[%emt 0:01:01]} 26. Rc3 {[%emt 0:00:18]} Rxf1+ {[%emt 0:01:01]} 27. Kg2 {[%emt 0:00:18]} Rxf2+ {[%emt 0:01:06]} 28. Kh3 {[%emt 0:00:10]} Be6 {[%emt 0:01:18]} 0-1

[Event "Czech Youth U14 Girls 2024"]
[Site "Kouty nad Desnou"]
[Date "2024.03.13"]
[Round "6.1"]
[White "Horkova, Tereza"]
[Black "Bartova, Hana"]
[Result "1-0"]
[ECO "C02"]
[WhiteElo "1845"]
[BlackElo "1667"]
[Annotator "NA RC"]
[PlyCount "59"]
[EventDate "2024.03.10"]
[EventType "swiss"]
[EventCountry "CZE"]
[SourceTitle "playchess.com"]
[Source "ChessBase"]
[SourceQuality "1"]
[TimeControl "40/5400+30:1800+30"]

1. e4 {[%emt 0:00:03]} e6 {[%emt 0:00:44]} 2. d4 {[%emt 0:00:13]} d5 {[%emt 0:00:05]} 3. e5 {[%emt 0:00:07]} c5 {[%emt 0:01:14]} 4. c3 {[%emt 0:00:19]} Qb6 {[%emt 0:00:25]} 5. Nf3 {[%emt 0:00:18]} Bd7 {[%emt 0:01:11]} 6. Be2 {[%emt 0:00:26]} cxd4 {[%emt 0:00:42]} 7. cxd4 {[%emt 0:00:12]} Bb5 {[%emt 0:00:12]} 8. O-O {[%emt 0:08:28]} Bxe2 {[%emt 0:00:57]} 9. Qxe2 {[%emt 0:00:02]} Nc6 {[%emt 0:00:30]} 10. Rd1 {[%emt 0:01:16] C02: French: Advance Variation.} Nge7 {[%emt 0:05:25]} 11. Na3 {[%emt 0:02:15]} Nf5 {[%emt 0:03:23]} 12. Nc2 {[%emt 0:00:26]} Rc8 {[%emt 0:00:34]} 13. b3 {[%emt 0:05:12]} Bb4 {[%emt 0:25:28]} 14. Bb2 {[%emt 0:06:21]} O-O {[%emt 0:05:24]} 15. g4 {[%emt 0:03:56]} Nh6 {[%emt 0:01:44]} 16. Ng5 {[%emt 0:03:06]} Rc7 {[%emt 0:13:20]} 17. Qd3 {[%emt 0:00:56]} g6 {[%emt 0:00:15]} 18. Qh3 {[%emt 0:02:54]} Kg7 {[%emt 0:09:17]} 19. Bc1 {[%emt 0:01:00]} Rfc8 {[%emt 0:01:17]} 20. Nxe6+ {[%emt 0:02:00]} fxe6 {[%emt 0:00:09]} 21. Bxh6+ {[%emt 0:02:43]} Kg8 {[%emt 0:01:05]} 22. Nxb4 {[%emt 0:25:27]} Nxb4 {[%emt 0:01:44]} 23. Rd2 $14 {[%emt 0:08:15]} Rc1+ {[%emt 0:08:35]} 24. Rxc1 {[%emt 0:01:20]} Rxc1+ {[%emt 0:00:02]} 25. Kg2 {[%emt 0:00:17]} Qa6 {[%emt 0:01:11]} 26. Qf3 {[%emt 0:03:53]} Qf1+ {[%emt 0:01:02]} 27. Kg3 {[%emt 0:00:09]} Qg1+ {[%emt 0:01:17]} 28. Kh4 {[%emt 0:01:58]} Qxh2+ {[%emt 0:01:27]} 29. Kg5 {[%emt 0:00:24]} Rc8 {[%emt 0:02:38]} 30. Qf6 {[%emt 0:00:19]} 1-0

[Event "Czech Youth U14 Girls 2024"]
[Site "Kouty nad Desnou"]
[Date "2024.03.13"]
[Round "6.2"]
[White "Slivova, Linda"]
[Black "Kozusnikova, Daniela"]
[Result "1-0"]
[ECO "D02"]
[WhiteElo "1824"]
[BlackElo "1809"]
[Annotator "NA RC"]
[PlyCount "85"]
[EventDate "2024.03.10"]
[EventType "swiss"]
[EventCountry "CZE"]
[SourceTitle "playchess.com"]
[Source "ChessBase"]
[SourceQuality "1"]
[TimeControl "40/5400+30:1800+30"]

1. d4 {[%emt 0:00:04]} d5 {[%emt 0:00:19]} 2. Nf3 {[%emt 0:00:16]} Nf6 {[%emt 0:00:24]} 3. Bf4 {[%emt 0:00:20]} Bg4 {[%emt 0:03:53]} 4. e3 {[%emt 0:03:22]} e6 {[%emt 0:01:14]} 5. Nbd2 {[%emt 0:00:48]} Be7 {[%emt 0:04:30]} 6. c3 {[%emt 0:09:18]} Nbd7 {[%emt 0:01:30]} 7. Qb3 {[%emt 0:02:17]} Rb8 {[%emt 0:09:30]} 8. Rc1 {[%emt 0:10:38]} Nh5 {[%emt 0:03:44]} 9. Bd3 {[%emt 0:07:40]} Nxf4 {[%emt 0:02:46]} 10. exf4 {[%emt 0:00:11]} c6 {[%emt 0:04:57]} 11. Ne5 {[%emt 0:03:45]} Bh5 {[%emt 0:04:35]} 12. O-O {[%emt 0:06:03]} f6 {[%emt 0:03:40]} 13. Nef3 {[%emt 0:08:47]} O-O {[%emt 0:02:08]} 14. Rfe1 {[%emt 0:02:54]} Bf7 {[%emt 0:01:54]} 15. Qc2 {[%emt 0:01:02]} g6 $14 {[%emt 0:03:37]} 16. b4 {[%emt 0:19:28]} Bd6 {[%emt 0:11:29]} 17. g3 {[%emt 0:00:18]} b5 {[%emt 0:05:55]} 18. a4 {[%emt 0:02:47]} Re8 {[%emt 0:04:55]} 19. a5 {[%emt 0:03:06]} a6 {[%emt 0:02:05]} 20. Nb3 {[%emt 0:00:42]} e5 {[%emt 0:02:52]} 21. fxe5 {[%emt 0:01:13]} fxe5 {[%emt 0:00:09]} 22. Bf1 {[%emt 0:09:35]} e4 {[%emt 0:01:23]} 23. Nh4 {[%emt 0:00:43]} Qf6 {[%emt 0:04:38]} 24. Ng2 {[%emt 0:01:09]} Nf8 {[%emt 0:03:28]} 25. Ne3 {[%emt 0:01:46]} Ne6 {[%emt 0:02:08]} 26. Ng4 {[%emt 0:01:31]} Qe7 {[%emt 0:03:41]} 27. Bg2 {[%emt 0:02:14]} Qd8 {[%emt 0:07:44]} 28. f3 {[%emt 0:01:12]} exf3 {[%emt 0:00:32]} 29. Bxf3 {[%emt 0:00:06]} Ng5 {[%emt 0:01:55]} 30. Bg2 {[%emt 0:00:31]} Kg7 {[%emt 0:02:22]} 31. Rxe8 {[%emt 0:01:06]} Qxe8 {[%emt 0:00:38]} 32. Qf2 {[%emt 0:00:15]} Qd8 {[%emt 0:00:43]} 33. Re1 {[%emt 0:00:43]} Be6 {[%emt 0:00:49]} 34. Ne5 {[%emt 0:00:23]} Qc7 {[%emt 0:00:46]} 35. Nf3 {[%emt 0:01:06]} Rf8 {[%emt 0:00:29]} 36. Nxg5 {[%emt 0:00:20]} Rxf2 {[%emt 0:00:24]} 37. Nxe6+ {[%emt 0:00:04]} Kf7 {[%emt 0:00:23]} 38. Nxc7 {[%emt 0:00:05]} Rb2 {[%emt 0:00:09]} 39. Nc5 {[%emt 0:00:25]} Bxc7 {[%emt 0:00:10]} 40. Nxa6 {[%emt 0:00:20]} Bd6 {[%emt 0:00:11]} 41. Nc5 {[%emt 0:31:40]} Bxc5 {[%emt 0:30:18]} 42. dxc5 {[%emt 0:00:15]} Rc2 {[%emt 0:00:16]} 43. Ra1 {[%emt 0:00:00]} 1-0

[Event "Czech Youth U14 Girls 2024"]
[Site "Kouty nad Desnou"]
[Date "2024.03.13"]
[Round "6.3"]
[White "Kammova, Katerina"]
[Black "Kubatova, Beta"]
[Result "1-0"]
[ECO "B12"]
[WhiteElo "1781"]
[BlackElo "1666"]
[Annotator "NA RC"]
[PlyCount "123"]
[EventDate "2024.03.10"]
[EventType "swiss"]
[EventCountry "CZE"]
[SourceTitle "playchess.com"]
[Source "ChessBase"]
[SourceQuality "1"]
[TimeControl "40/5400+30:1800+30"]

1. e4 {[%emt 0:00:05]} c6 {[%emt 0:00:08]} 2. d4 {[%emt 0:00:28]} d5 {[%emt 0:00:10]} 3. e5 {[%emt 0:00:41]} Bf5 {[%emt 0:00:13]} 4. c4 {[%emt 0:01:22]} e6 {[%emt 0:02:40]} 5. Nc3 {[%emt 0:01:41]} Ne7 {[%emt 0:04:36]} 6. a3 {[%emt 0:02:39]} a6 {[%emt 0:07:21]} 7. Be2 {[%emt 0:25:21]} Nd7 {[%emt 0:12:39]} 8. c5 {[%emt 0:02:37]} Bg6 {[%emt 0:09:32]} 9. h4 {[%emt 0:04:30]} h6 {[%emt 0:03:48]} 10. Nf3 {[%emt 0:03:04]} Nc8 {[%emt 0:15:08]} 11. h5 {[%emt 0:04:39]} Bh7 {[%emt 0:01:08]} 12. O-O {[%emt 0:01:51]} Be7 {[%emt 0:01:01]} 13. Bd3 {[%emt 0:02:11]} Bxd3 {[%emt 0:03:58]} 14. Qxd3 {[%emt 0:00:11]} O-O {[%emt 0:06:40]} 15. Bd2 {[%emt 0:03:10]} b6 {[%emt 0:03:14]} 16. b4 {[%emt 0:01:42]} b5 {[%emt 0:02:07]} 17. Rfe1 {[%emt 0:06:06]} Re8 {[%emt 0:06:32]} 18. Ne2 {[%emt 0:04:21]} Nf8 {[%emt 0:01:33]} 19. Nf4 {[%emt 0:05:05]} Nh7 {[%emt 0:01:10]} 20. Nh3 {[%emt 0:04:29]} Ra7 {[%emt 0:04:06]} 21. Kf1 {[%emt 0:04:38]} Bg5 {[%emt 0:04:28]} 22. Ke2 {[%emt 0:06:15]} Bxd2 {[%emt 0:02:39]} 23. Qxd2 {[%emt 0:01:25]} f5 {[%emt 0:00:39]} 24. Kd1 {[%emt 0:01:51]} a5 {[%emt 0:01:17]} 25. Kc2 {[%emt 0:01:31]} axb4 {[%emt 0:01:15]} 26. axb4 {[%emt 0:00:35]} Ree7 {[%emt 0:00:58]} 27. Kb2 {[%emt 0:01:34]} Qe8 {[%emt 0:00:47]} 28. Nf4 {[%emt 0:00:53]} Ra4 {[%emt 0:01:48]} 29. Rxa4 {[%emt 0:01:14]} bxa4 {[%emt 0:00:07]} 30. Ra1 {[%emt 0:01:09]} Ra7 {[%emt 0:00:11]} 31. Qd1 {[%emt 0:01:40]} Ng5 {[%emt 0:01:20]} 32. Nd2 {[%emt 0:04:10]} Qd7 {[%emt 0:01:14]} 33. f3 {[%emt 0:02:42]} Ne7 {[%emt 0:01:26]} 34. Rxa4 {[%emt 0:00:18]} Rxa4 {[%emt 0:00:43]} 35. Qxa4 {[%emt 0:00:03]} Kf7 {[%emt 0:00:07]} 36. Nb3 {[%emt 0:01:02]} Nh7 {[%emt 0:00:47]} 37. Na5 {[%emt 0:01:01]} Nf8 {[%emt 0:00:30]} 38. Kc3 {[%emt 0:00:32]} g5 {[%emt 0:00:30]} 39. hxg6+ {[%emt 0:00:26]} Nfxg6 {[%emt 0:00:10]} 40. Nxg6 {[%emt 0:00:24]} Kxg6 {[%emt 0:00:11]} 41. Nb3 {[%emt 0:01:27]} Qb7 {[%emt 0:03:28]} 42. Qa5 {[%emt 0:02:15]} Qb8 {[%emt 0:04:00]} 43. Qb6 {[%emt 0:01:58]} Qc8 {[%emt 0:00:31]} 44. Na5 {[%emt 0:01:39]} h5 {[%emt 0:07:55]} 45. Qb7 {[%emt 0:08:45]} Qe8 {[%emt 0:02:18]} 46. b5 {[%emt 0:05:06]} cxb5 {[%emt 0:04:09]} 47. c6 {[%emt 0:00:38]} b4+ {[%emt 0:01:07]} 48. Kb2 {[%emt 0:04:50]} Nc8 {[%emt 0:03:42]} 49. Qd7 {[%emt 0:01:37]} Qg8 {[%emt 0:00:41]} 50. c7 {[%emt 0:01:35]} Kh6 {[%emt 0:02:04]} 51. g3 {[%emt 0:02:49]} f4 {[%emt 0:01:37]} 52. Qd8 {[%emt 0:00:49]} Kh7 {[%emt 0:03:32]} 53. g4 {[%emt 0:00:14]} hxg4 {[%emt 0:00:37]} 54. Qh4+ {[%emt 0:00:08]} Kg7 {[%emt 0:00:31]} 55. Qxg4+ {[%emt 0:00:07]} Kh7 {[%emt 0:00:27]} 56. Qxf4 {[%emt 0:00:57]} Qg2+ {[%emt 0:00:43]} 57. Kb3 {[%emt 0:00:18]} Qg7 {[%emt 0:00:31]} 58. Qh4+ {[%emt 0:00:46]} Kg8 {[%emt 0:00:48]} 59. Qd8+ {[%emt 0:01:00]} Qf8 {[%emt 0:00:21]} 60. Nc6 {[%emt 0:00:49]} Kg7 {[%emt 0:01:03]} 61. Qd7+ {[%emt 0:00:36]} Kh8 {[%emt 0:00:37]} 62. Qxe6 {[%emt 0:00:37]} 1-0

[Event "Czech Youth U14 Girls 2024"]
[Site "Kouty nad Desnou"]
[Date "2024.03.13"]
[Round "6.4"]
[White "Bouchalova, Kveta"]
[Black "Nova, Doubravka Anezka"]
[Result "1/2-1/2"]
[ECO "C42"]
[WhiteElo "1627"]
[BlackElo "1718"]
[Annotator "NA"]
[PlyCount "61"]
[EventDate "2024.03.10"]
[EventType "swiss"]
[EventCountry "CZE"]
[SourceTitle "playchess.com"]
[Source "ChessBase"]
[SourceQuality "1"]
[TimeControl "40/5400+30:1800+30"]

1. e4 {[%emt 0:00:02]} e5 {[%emt 0:00:06]} 2. Nf3 {[%emt 0:00:10]} Nf6 {[%emt 0:00:08]} 3. Nxe5 {[%emt 0:00:12]} d6 {[%emt 0:00:03]} 4. Nf3 {[%emt 0:00:12]} Nxe4 {[%emt 0:00:05]} 5. d4 {[%emt 0:00:20]} d5 {[%emt 0:00:09]} 6. Bd3 {[%emt 0:01:10]} Nc6 {[%emt 0:00:07]} 7. Nbd2 {[%emt 0:03:16]} Nf6 {[%emt 0:04:18]} 8. c3 {[%emt 0:05:04]} Bd6 {[%emt 0:04:01]} 9. O-O {[%emt 0:01:26]} O-O {[%emt 0:00:12]} 10. Re1 {[%emt 0:05:36]} Re8 {[%emt 0:03:53]} 11. h3 {[%emt 0:07:10]} Ne7 {[%emt 0:05:59]} 12. Ne5 {[%emt 0:07:39]} Bf5 {[%emt 0:04:26]} 13. Ndf3 {[%emt 0:22:13]} Bxd3 {[%emt 0:03:06]} 14. Nxd3 {[%emt 0:00:38]} Ng6 {[%emt 0:07:05]} 15. Nfe5 {[%emt 0:05:54]} c6 {[%emt 0:08:25]} 16. Nxg6 {[%emt 0:03:17]} hxg6 {[%emt 0:00:55]} 17. Bf4 {[%emt 0:01:39]} Ne4 {[%emt 0:04:34]} 18. Bxd6 {[%emt 0:01:57]} Qxd6 {[%emt 0:00:43]} 19. Qg4 {[%emt 0:02:19]} Re7 {[%emt 0:05:09]} 20. f3 {[%emt 0:07:53]} Nf6 {[%emt 0:04:11]} 21. Qf4 {[%emt 0:00:42]} Qxf4 {[%emt 0:00:48]} 22. Nxf4 {[%emt 0:00:05]} Rae8 {[%emt 0:01:24]} 23. Kf2 {[%emt 0:01:46]} Kf8 {[%emt 0:03:11]} 24. Rxe7 {[%emt 0:03:20]} Rxe7 {[%emt 0:01:21]} 25. Nd3 {[%emt 0:01:37]} Nd7 {[%emt 0:02:10]} 26. Re1 {[%emt 0:02:46]} Rxe1 {[%emt 0:01:32]} 27. Kxe1 {[%emt 0:00:50]} Ke7 {[%emt 0:01:43]} 28. Kf2 {[%emt 0:01:40]} Kd6 {[%emt 0:04:24]} 29. Ke3 {[%emt 0:01:17]} b6 {[%emt 0:03:20]} 30. f4 {[%emt 0:01:49]} f6 {[%emt 0:01:44]} 31. g4 {[%emt 0:04:09]} 1/2-1/2